[Event "Titled Tuesday Blitz April 25 Early 2023"]
[White "Bodnaruk, Anastasia"]
[Black "Todorovic, Bojan"]
[WhiteFideId "4181751"]
[BlackFideId "917087"]
[WhiteElo "2310"]
[BlackElo "2266"]
[Result "1-0"]
[Round "05"]
[TimeControl "180+2"]
[Date "2023.04.25"]
[WhiteClock "0:01:19"]
[BlackClock "0:00:01"]

1. e4 {[%clk 0:02:59]}  g6 {[%clk 0:02:59]} 2. d4 {[%clk 0:02:59]}  Bg7 {[%clk 0:02:59]} 3. Nc3 {[%clk 0:03:00]}  d6 {[%clk 0:02:59]} 4. f4 {[%clk 0:02:57]}  a6 {[%clk 0:02:58]} 5. Nf3 {[%clk 0:02:56]}  Nd7 {[%clk 0:02:56]} 6. Be3 {[%clk 0:02:52]}  b5 {[%clk 0:02:55]} 7. e5 {[%clk 0:02:51]}  Bb7 {[%clk 0:02:54]} 8. Bd3 {[%clk 0:02:47]}  c5 {[%clk 0:02:39]} 9. Be4 {[%clk 0:02:37]}  Bxe4 {[%clk 0:01:55]} 10. Nxe4 {[%clk 0:02:36]}  Qc7 {[%clk 0:01:48]} 11. exd6 {[%clk 0:02:33]}  exd6 {[%clk 0:01:45]} 12. dxc5 {[%clk 0:02:33]}  dxc5 {[%clk 0:01:37]} 13. Qd5 {[%clk 0:02:30]}  Nb6 {[%clk 0:01:27]} 14. Qxc5 {[%clk 0:02:15]}  Qxc5 {[%clk 0:01:21]} 15. Bxc5 {[%clk 0:02:14]}  Na4 {[%clk 0:01:21]} 16. Bd4 {[%clk 0:02:07]}  Bxd4 {[%clk 0:01:12]} 17. Nxd4 {[%clk 0:02:07]}  O-O-O {[%clk 0:01:12]} 18. O-O-O {[%clk 0:02:05]}  Ne7 {[%clk 0:01:05]} 19. Rhe1 {[%clk 0:01:58]}  Rd7 {[%clk 0:00:29]} 20. Nf6 {[%clk 0:01:51]}  Rc7 {[%clk 0:00:30]} 21. Nf3 {[%clk 0:01:40]}  Nf5 {[%clk 0:00:23]} 22. g4 {[%clk 0:01:35]}  Ng7 {[%clk 0:00:19]} 23. Ne5 {[%clk 0:01:34]}  Ne6 {[%clk 0:00:18]} 24. Nxf7 {[%clk 0:01:32]}  Rxf7 {[%clk 0:00:15]} 25. Rxe6 {[%clk 0:01:32]}  Kb7 {[%clk 0:00:11]} 26. Nd5 {[%clk 0:01:32]}  Rd8 {[%clk 0:00:07]} 27. Rf6 {[%clk 0:01:27]}  Rfd7 {[%clk 0:00:05]} 28. Ne3 {[%clk 0:01:25]}  Rxd1+ {[%clk 0:00:03]} 29. Nxd1 {[%clk 0:01:25]}  Rd7 {[%clk 0:00:01]} 30. c3 {[%clk 0:01:21]}  Nc5 {[%clk 0:00:01]} 31. Nf2 {[%clk 0:01:19]} 1-0


[Site "https://www.chess.com"]

[Event "Titled Tuesday Blitz April 25 Early 2023"]
[White "egorchess95"]
[Black "Allahverdiyeva, Ayan"]
[BlackFideId "13412590"]
[WhiteElo "2546"]
[BlackElo "1980"]
[Result "0-1"]
[Round "05"]
[TimeControl "180+2"]
[Date "2023.04.25"]
[WhiteClock "0:00:19"]
[BlackClock "0:00:14"]

1. e4 {[%clk 0:03:00]}  c5 {[%clk 0:02:55]} 2. Nf3 {[%clk 0:03:00]}  d6 {[%clk 0:02:55]} 3. d4 {[%clk 0:03:00]}  cxd4 {[%clk 0:02:55]} 4. Qxd4 {[%clk 0:03:00]}  Nc6 {[%clk 0:02:53]} 5. Bb5 {[%clk 0:03:00]}  Bd7 {[%clk 0:02:53]} 6. Bxc6 {[%clk 0:03:00]}  Bxc6 {[%clk 0:02:54]} 7. Nc3 {[%clk 0:03:00]}  e6 {[%clk 0:02:49]} 8. Bg5 {[%clk 0:02:48]}  Nf6 {[%clk 0:02:41]} 9. O-O-O {[%clk 0:02:47]}  Be7 {[%clk 0:02:41]} 10. Bxf6 {[%clk 0:02:45]}  Bxf6 {[%clk 0:02:40]} 11. Qxd6 {[%clk 0:02:46]}  Qxd6 {[%clk 0:02:39]} 12. Rxd6 {[%clk 0:02:47]}  Bxc3 {[%clk 0:02:39]} 13. bxc3 {[%clk 0:02:47]}  Bxe4 {[%clk 0:02:39]} 14. Ne5 {[%clk 0:02:47]}  Rc8 {[%clk 0:02:08]} 15. c4 {[%clk 0:02:28]}  b6 {[%clk 0:01:58]} 16. f3 {[%clk 0:02:23]}  Ba8 {[%clk 0:01:57]} 17. Rhd1 {[%clk 0:02:15]}  O-O {[%clk 0:01:54]} 18. R1d4 {[%clk 0:02:01]}  f6 {[%clk 0:01:22]} 19. Nd3 {[%clk 0:00:59]}  e5 {[%clk 0:01:22]} 20. Rg4 {[%clk 0:00:54]}  Rc7 {[%clk 0:01:04]} 21. h4 {[%clk 0:00:36]}  h5 {[%clk 0:00:54]} 22. Rg3 {[%clk 0:00:36]}  Kh7 {[%clk 0:00:41]} 23. Nb2 {[%clk 0:00:32]}  Bb7 {[%clk 0:00:29]} 24. Rd3 {[%clk 0:00:24]}  Rfc8 {[%clk 0:00:18]} 25. Rh3 {[%clk 0:00:20]}  Ba6 {[%clk 0:00:17]} 26. Rc3 {[%clk 0:00:21]}  b5 {[%clk 0:00:17]} 27. Rh1 {[%clk 0:00:18]}  b4 {[%clk 0:00:14]} 28. Rb3 {[%clk 0:00:19]}  Bxc4 {[%clk 0:00:15]} 29. Rxb4 {[%clk 0:00:18]}  Bxa2 {[%clk 0:00:14]} 30. Ra4 {[%clk 0:00:19]}  Rxc2+ {[%clk 0:00:14]} 31. Kd1 {[%clk 0:00:19]}  Rxb2 {[%clk 0:00:14]} 32. Rxa7 {[%clk 0:00:19]}  Rb1+ {[%clk 0:00:14]} 0-1


[Site "https://www.chess.com"]

[Event "Titled Tuesday Blitz April 25 Early 2023"]
[White "Mihajlovskij"]
[Black "Sadovsky, Artem"]
[BlackFideId "4155840"]
[WhiteElo "2310"]
[BlackElo "2314"]
[Result "0-1"]
[Round "05"]
[TimeControl "180+2"]
[Date "2023.04.25"]
[WhiteClock "0:01:04"]
[BlackClock "0:00:41"]

1. e4 {[%clk 0:03:00]}  g6 {[%clk 0:02:50]} 2. d4 {[%clk 0:03:00]}  Bg7 {[%clk 0:02:40]} 3. Nc3 {[%clk 0:02:59]}  c6 {[%clk 0:02:40]} 4. f4 {[%clk 0:02:52]}  d5 {[%clk 0:02:39]} 5. e5 {[%clk 0:02:52]}  h5 {[%clk 0:02:38]} 6. Nf3 {[%clk 0:02:51]}  Nh6 {[%clk 0:02:38]} 7. h3 {[%clk 0:02:51]}  Nf5 {[%clk 0:02:37]} 8. Kf2 {[%clk 0:02:46]}  h4 {[%clk 0:02:35]} 9. Bd3 {[%clk 0:02:46]}  Ng3 {[%clk 0:02:34]} 10. Re1 {[%clk 0:02:46]}  Bf5 {[%clk 0:02:34]} 11. Be3 {[%clk 0:02:44]}  Bxd3 {[%clk 0:02:34]} 12. Qxd3 {[%clk 0:02:45]}  Nf5 {[%clk 0:02:33]} 13. Kg1 {[%clk 0:02:44]}  e6 {[%clk 0:02:32]} 14. Bf2 {[%clk 0:02:43]}  Bf8 {[%clk 0:02:30]} 15. a3 {[%clk 0:02:37]}  Be7 {[%clk 0:02:30]} 16. b4 {[%clk 0:02:34]}  Nd7 {[%clk 0:02:28]} 17. Na4 {[%clk 0:02:31]}  b5 {[%clk 0:02:21]} 18. Nc5 {[%clk 0:02:31]}  Nb6 {[%clk 0:02:21]} 19. c3 {[%clk 0:02:26]}  Nc4 {[%clk 0:02:15]} 20. a4 {[%clk 0:02:23]}  Bxc5 {[%clk 0:02:14]} 21. dxc5 {[%clk 0:02:21]}  Nb2 {[%clk 0:02:12]} 22. Qc2 {[%clk 0:02:18]}  Nxa4 {[%clk 0:02:11]} 23. Rxa4 {[%clk 0:02:18]}  bxa4 {[%clk 0:02:09]} 24. Qxa4 {[%clk 0:02:18]}  Qd7 {[%clk 0:02:06]} 25. Qa5 {[%clk 0:02:09]}  Kf8 {[%clk 0:01:56]} 26. Ra1 {[%clk 0:02:06]}  Kg7 {[%clk 0:01:55]} 27. Qa6 {[%clk 0:02:02]}  Qc8 {[%clk 0:01:38]} 28. Qa5 {[%clk 0:01:57]}  Qb7 {[%clk 0:01:35]} 29. Nd2 {[%clk 0:01:40]}  Rhb8 {[%clk 0:01:25]} 30. Nb3 {[%clk 0:01:39]}  Qd7 {[%clk 0:01:17]} 31. Qa6 {[%clk 0:01:34]}  d4 {[%clk 0:01:15]} 32. Bxd4 {[%clk 0:01:29]}  Nxd4 {[%clk 0:01:13]} 33. Nxd4 {[%clk 0:01:28]}  Rxb4 {[%clk 0:01:13]} 34. Nxc6 {[%clk 0:01:18]}  Rxf4 {[%clk 0:01:11]} 35. Kh2 {[%clk 0:01:13]}  Rf2 {[%clk 0:01:03]} 36. Nd4 {[%clk 0:01:06]}  Qd5 {[%clk 0:01:02]} 37. Rg1 {[%clk 0:01:06]}  Qxe5+ {[%clk 0:01:00]} 38. Kh1 {[%clk 0:01:07]}  Qxc5 {[%clk 0:00:51]} 39. Nxe6+ {[%clk 0:01:06]}  fxe6 {[%clk 0:00:44]} 40. Qb7+ {[%clk 0:01:06]}  Rf7 {[%clk 0:00:41]} 41. Qxa8 {[%clk 0:01:05]}  Qxc3 {[%clk 0:00:42]} 42. Qxa7 {[%clk 0:01:04]}  Rxa7 {[%clk 0:00:41]} 0-1


[Site "https://www.chess.com"]

[Event "Titled Tuesday Blitz April 25 Early 2023"]
[White "Shimelkov, Vasiliy"]
[Black "Gonzalez, Francisco Silva"]
[WhiteFideId "13701630"]
[BlackFideId "1512285"]
[WhiteElo "2073"]
[BlackElo "2074"]
[Result "0-1"]
[Round "05"]
[TimeControl "180+2"]
[Date "2023.04.25"]
[WhiteClock "0:00:02"]
[BlackClock "0:00:19"]

1. d4 {[%clk 0:02:54]}  Nf6 {[%clk 0:02:57]} 2. c4 {[%clk 0:02:53]}  e6 {[%clk 0:02:57]} 3. Nf3 {[%clk 0:02:53]}  d5 {[%clk 0:02:56]} 4. Nc3 {[%clk 0:02:53]}  a6 {[%clk 0:02:56]} 5. cxd5 {[%clk 0:02:52]}  exd5 {[%clk 0:02:56]} 6. Bf4 {[%clk 0:02:52]}  Be6 {[%clk 0:02:56]} 7. e3 {[%clk 0:02:51]}  Bd6 {[%clk 0:02:55]} 8. Ne5 {[%clk 0:02:51]}  c5 {[%clk 0:02:55]} 9. dxc5 {[%clk 0:02:50]}  Bxc5 {[%clk 0:02:53]} 10. Be2 {[%clk 0:02:47]}  Bd6 {[%clk 0:02:53]} 11. Nd3 {[%clk 0:02:45]}  Nc6 {[%clk 0:02:51]} 12. Bxd6 {[%clk 0:02:45]}  Qxd6 {[%clk 0:02:50]} 13. O-O {[%clk 0:02:44]}  O-O {[%clk 0:02:46]} 14. Bf3 {[%clk 0:02:42]}  Rad8 {[%clk 0:02:45]} 15. Nf4 {[%clk 0:02:36]}  d4 {[%clk 0:02:45]} 16. Nxe6 {[%clk 0:02:18]}  Qxe6 {[%clk 0:02:45]} 17. exd4 {[%clk 0:02:10]}  Rxd4 {[%clk 0:02:44]} 18. Qc1 {[%clk 0:01:53]}  Qc8 {[%clk 0:02:32]} 19. Rd1 {[%clk 0:01:41]}  Rfd8 {[%clk 0:02:28]} 20. Rxd4 {[%clk 0:01:36]}  Nxd4 {[%clk 0:02:28]} 21. Qf4 {[%clk 0:01:28]}  Ne6 {[%clk 0:02:24]} 22. Qe5 {[%clk 0:01:24]}  b5 {[%clk 0:02:23]} 23. h3 {[%clk 0:01:20]}  Nd4 {[%clk 0:02:23]} 24. Bd1 {[%clk 0:00:57]}  b4 {[%clk 0:02:21]} 25. Ne4 {[%clk 0:00:56]}  Nxe4 {[%clk 0:02:20]} 26. Qxe4 {[%clk 0:00:56]}  Qc5 {[%clk 0:02:05]} 27. Ba4 {[%clk 0:00:51]}  Ne6 {[%clk 0:02:02]} 28. Re1 {[%clk 0:00:42]}  a5 {[%clk 0:02:00]} 29. Bb3 {[%clk 0:00:40]}  Re8 {[%clk 0:01:50]} 30. Qg4 {[%clk 0:00:27]}  h5 {[%clk 0:01:43]} 31. Qf3 {[%clk 0:00:25]}  g6 {[%clk 0:01:32]} 32. Qf6 {[%clk 0:00:23]}  Qe7 {[%clk 0:01:27]} 33. Qe5 {[%clk 0:00:22]}  Qd8 {[%clk 0:01:19]} 34. Ba4 {[%clk 0:00:19]}  Re7 {[%clk 0:01:17]} 35. Qb5 {[%clk 0:00:18]}  Nd4 {[%clk 0:01:08]} 36. Qf1 {[%clk 0:00:14]}  Nf5 {[%clk 0:01:07]} 37. Rd1 {[%clk 0:00:13]}  Qb6 {[%clk 0:01:05]} 38. Qd3 {[%clk 0:00:13]}  Kg7 {[%clk 0:01:03]} 39. Bb3 {[%clk 0:00:13]}  Qf6 {[%clk 0:00:58]} 40. Qd2 {[%clk 0:00:11]}  h4 {[%clk 0:00:55]} 41. Qf4 {[%clk 0:00:11]}  Qxb2 {[%clk 0:00:48]} 42. Qb8 {[%clk 0:00:10]}  a4 {[%clk 0:00:44]} 43. Bd5 {[%clk 0:00:06]}  Qe2 {[%clk 0:00:41]} 44. Bf3 {[%clk 0:00:06]}  Qc4 {[%clk 0:00:37]} 45. Rd8 {[%clk 0:00:05]}  Kf6 {[%clk 0:00:28]} 46. Qb6+ {[%clk 0:00:04]}  Kg5 {[%clk 0:00:27]} 47. Qb7 {[%clk 0:00:02]}  Qf4 {[%clk 0:00:19]} 0-1


[Site "https://www.chess.com"]

[Event "Titled Tuesday Blitz April 25 Early 2023"]
[White "Bashkansky, Ethan"]
[Black "Ljukin, Sergei"]
[WhiteFideId "2071533"]
[BlackFideId "14102200"]
[WhiteElo "2301"]
[BlackElo "2312"]
[Result "0-1"]
[Round "05"]
[TimeControl "180+2"]
[Date "2023.04.25"]
[WhiteClock "0:00:01"]
[BlackClock "0:00:10"]

1. d4 {[%clk 0:03:00]}  d5 {[%clk 0:02:57]} 2. c4 {[%clk 0:03:01]}  c6 {[%clk 0:02:57]} 3. Nc3 {[%clk 0:03:01]}  Nf6 {[%clk 0:02:56]} 4. e3 {[%clk 0:03:01]}  e6 {[%clk 0:02:56]} 5. Nf3 {[%clk 0:03:01]}  Nbd7 {[%clk 0:02:55]} 6. Bd3 {[%clk 0:03:01]}  dxc4 {[%clk 0:02:54]} 7. Bxc4 {[%clk 0:03:02]}  b5 {[%clk 0:02:55]} 8. Be2 {[%clk 0:03:03]}  a6 {[%clk 0:02:54]} 9. e4 {[%clk 0:03:02]}  c5 {[%clk 0:02:53]} 10. e5 {[%clk 0:03:02]}  cxd4 {[%clk 0:02:51]} 11. Qxd4 {[%clk 0:02:53]}  Bc5 {[%clk 0:02:44]} 12. Qh4 {[%clk 0:02:52]}  Nd5 {[%clk 0:02:36]} 13. Qg3 {[%clk 0:02:33]}  g6 {[%clk 0:02:01]} 14. O-O {[%clk 0:02:28]}  Nxc3 {[%clk 0:01:58]} 15. bxc3 {[%clk 0:02:28]}  O-O {[%clk 0:01:57]} 16. Bg5 {[%clk 0:02:14]}  Be7 {[%clk 0:01:36]} 17. Qh4 {[%clk 0:02:10]}  f6 {[%clk 0:01:10]} 18. exf6 {[%clk 0:01:56]}  Nxf6 {[%clk 0:00:53]} 19. Rfe1 {[%clk 0:01:25]}  Bb7 {[%clk 0:00:50]} 20. Nd4 {[%clk 0:01:14]}  Qc8 {[%clk 0:00:33]} 21. c4 {[%clk 0:00:42]}  e5 {[%clk 0:00:30]} 22. Nf3 {[%clk 0:00:27]}  e4 {[%clk 0:00:26]} 23. Ne5 {[%clk 0:00:24]}  Qf5 {[%clk 0:00:20]} 24. f4 {[%clk 0:00:13]}  exf3 {[%clk 0:00:15]} 25. Bxf3 {[%clk 0:00:13]}  Bxf3 {[%clk 0:00:13]} 26. Nxf3 {[%clk 0:00:13]}  Bc5+ {[%clk 0:00:12]} 27. Be3 {[%clk 0:00:04]}  Bxe3+ {[%clk 0:00:12]} 28. Rxe3 {[%clk 0:00:04]}  Qc5 {[%clk 0:00:12]} 29. Qd4 {[%clk 0:00:04]}  Qxd4 {[%clk 0:00:12]} 30. Nxd4 {[%clk 0:00:05]}  bxc4 {[%clk 0:00:13]} 31. Rc1 {[%clk 0:00:03]}  Nd5 {[%clk 0:00:12]} 32. Re5 {[%clk 0:00:01]}  Rad8 {[%clk 0:00:11]} 33. Rxc4 {[%clk 0:00:01]}  Nb6 {[%clk 0:00:12]} 34. Rb4 {[%clk 0:00:01]}  Nd7 {[%clk 0:00:11]} 35. Re7 {[%clk 0:00:01]}  Nc5 {[%clk 0:00:11]} 36. Ne6 {[%clk 0:00:01]}  Rd1# {[%clk 0:00:10]} 0-1


[Site "https://www.chess.com"]

[Event "Titled Tuesday Blitz April 25 Early 2023"]
[White "Tsyhanchuk, Stanislav"]
[Black "Khoder, Akram"]
[WhiteFideId "13505130"]
[BlackFideId "5306914"]
[WhiteElo "2173"]
[BlackElo "2034"]
[Result "0-1"]
[Round "05"]
[TimeControl "180+2"]
[Date "2023.04.25"]
[WhiteClock "0:00:33"]
[BlackClock "0:01:32"]

1. c4 {[%clk 0:03:00]}  c6 {[%clk 0:02:59]} 2. Nc3 {[%clk 0:02:59]}  d5 {[%clk 0:02:59]} 3. e3 {[%clk 0:03:00]}  Nf6 {[%clk 0:02:59]} 4. Nf3 {[%clk 0:03:00]}  g6 {[%clk 0:03:00]} 5. d4 {[%clk 0:02:58]}  Bg7 {[%clk 0:03:00]} 6. cxd5 {[%clk 0:02:55]}  cxd5 {[%clk 0:02:51]} 7. Be2 {[%clk 0:02:56]}  O-O {[%clk 0:02:51]} 8. O-O {[%clk 0:02:56]}  Nc6 {[%clk 0:02:51]} 9. a3 {[%clk 0:02:49]}  Bf5 {[%clk 0:02:51]} 10. b4 {[%clk 0:02:47]}  a6 {[%clk 0:02:50]} 11. Bd2 {[%clk 0:02:45]}  Rc8 {[%clk 0:02:49]} 12. Qb3 {[%clk 0:02:33]}  Ne4 {[%clk 0:02:48]} 13. Nxe4 {[%clk 0:02:30]}  dxe4 {[%clk 0:02:48]} 14. Ne1 {[%clk 0:02:29]}  Be6 {[%clk 0:02:38]} 15. Qb1 {[%clk 0:02:18]}  Qd5 {[%clk 0:02:32]} 16. Nc2 {[%clk 0:02:13]}  b5 {[%clk 0:02:19]} 17. a4 {[%clk 0:02:03]}  h5 {[%clk 0:02:10]} 18. axb5 {[%clk 0:01:58]}  axb5 {[%clk 0:02:10]} 19. Na3 {[%clk 0:01:47]}  Na7 {[%clk 0:01:46]} 20. f3 {[%clk 0:01:32]}  Bf5 {[%clk 0:01:44]} 21. Qb2 {[%clk 0:01:16]}  e5 {[%clk 0:01:42]} 22. fxe4 {[%clk 0:01:13]}  Bxe4 {[%clk 0:01:40]} 23. Bf3 {[%clk 0:01:01]}  exd4 {[%clk 0:01:39]} 24. Bxe4 {[%clk 0:00:34]}  Qxe4 {[%clk 0:01:36]} 25. Qb3 {[%clk 0:00:34]}  dxe3 {[%clk 0:01:35]} 26. Bxe3 {[%clk 0:00:33]}  Rc3 {[%clk 0:01:32]} 0-1


[Site "https://www.chess.com"]

[Event "Titled Tuesday Blitz April 25 Early 2023"]
[White "Zhukova, Natalia"]
[Black "Fierz, Martin"]
[WhiteFideId "14101513"]
[BlackFideId "1302132"]
[WhiteElo "2297"]
[BlackElo "2265"]
[Result "1-0"]
[Round "05"]
[TimeControl "180+2"]
[Date "2023.04.25"]
[WhiteClock "0:00:03"]
[BlackClock "0:00:42"]

1. c4 {[%clk 0:03:00]}  c6 {[%clk 0:02:59]} 2. d4 {[%clk 0:02:59]}  d5 {[%clk 0:02:59]} 3. Nf3 {[%clk 0:02:59]}  Nf6 {[%clk 0:03:00]} 4. Nc3 {[%clk 0:03:00]}  a6 {[%clk 0:03:00]} 5. c5 {[%clk 0:02:54]}  Nbd7 {[%clk 0:02:56]} 6. Bf4 {[%clk 0:02:53]}  Nh5 {[%clk 0:02:56]} 7. Bd2 {[%clk 0:02:52]}  Nhf6 {[%clk 0:02:55]} 8. h3 {[%clk 0:02:51]}  g6 {[%clk 0:02:54]} 9. Bf4 {[%clk 0:02:51]}  Bg7 {[%clk 0:02:55]} 10. e3 {[%clk 0:02:51]}  O-O {[%clk 0:02:55]} 11. Be2 {[%clk 0:02:49]}  Re8 {[%clk 0:02:53]} 12. O-O {[%clk 0:02:47]}  Nh5 {[%clk 0:02:45]} 13. Bh2 {[%clk 0:02:47]}  e5 {[%clk 0:02:45]} 14. Nxe5 {[%clk 0:02:43]}  Nxe5 {[%clk 0:02:45]} 15. dxe5 {[%clk 0:02:37]}  Bxe5 {[%clk 0:02:45]} 16. Bxh5 {[%clk 0:02:36]}  Bxh2+ {[%clk 0:02:45]} 17. Kxh2 {[%clk 0:02:37]}  gxh5 {[%clk 0:02:39]} 18. Qxh5 {[%clk 0:02:37]}  Qc7+ {[%clk 0:02:38]} 19. Kg1 {[%clk 0:02:31]}  Qe5 {[%clk 0:02:37]} 20. Qh4 {[%clk 0:02:24]}  Bf5 {[%clk 0:02:35]} 21. Rfd1 {[%clk 0:02:20]}  Bg6 {[%clk 0:02:26]} 22. Ne2 {[%clk 0:02:12]}  Qxb2 {[%clk 0:02:24]} 23. Nd4 {[%clk 0:02:11]}  Re4 {[%clk 0:02:06]} 24. Qg3 {[%clk 0:01:58]}  Re7 {[%clk 0:01:57]} 25. h4 {[%clk 0:01:54]}  h5 {[%clk 0:01:55]} 26. Qg5 {[%clk 0:01:47]}  Rae8 {[%clk 0:01:53]} 27. a4 {[%clk 0:01:28]}  Re5 {[%clk 0:01:42]} 28. Qg3 {[%clk 0:01:25]}  Kh7 {[%clk 0:01:32]} 29. Re1 {[%clk 0:00:57]}  Qb4 {[%clk 0:01:21]} 30. f4 {[%clk 0:00:24]}  Rf5 {[%clk 0:01:20]} 31. Rab1 {[%clk 0:00:17]}  Qxc5 {[%clk 0:01:18]} 32. Nxf5 {[%clk 0:00:17]}  Bxf5 {[%clk 0:01:18]} 33. Rxb7 {[%clk 0:00:17]}  Re7 {[%clk 0:01:13]} 34. Rxe7 {[%clk 0:00:13]}  Qxe7 {[%clk 0:01:13]} 35. Qg5 {[%clk 0:00:13]}  Qe4 {[%clk 0:01:08]} 36. Qxh5+ {[%clk 0:00:12]}  Kg7 {[%clk 0:01:09]} 37. Qg5+ {[%clk 0:00:12]}  Kh7 {[%clk 0:01:08]} 38. Kh2 {[%clk 0:00:12]}  d4 {[%clk 0:01:07]} 39. h5 {[%clk 0:00:11]}  dxe3 {[%clk 0:01:04]} 40. h6 {[%clk 0:00:11]}  Bg6 {[%clk 0:01:01]} 41. Qf6 {[%clk 0:00:11]}  Kxh6 {[%clk 0:01:00]} 42. Qh8+ {[%clk 0:00:06]}  Bh7 {[%clk 0:00:58]} 43. Qf6+ {[%clk 0:00:06]}  Bg6 {[%clk 0:00:57]} 44. Qe5 {[%clk 0:00:03]}  Qxa4 {[%clk 0:00:53]} 45. Rxe3 {[%clk 0:00:03]}  Qd1 {[%clk 0:00:47]} 46. Rh3+ {[%clk 0:00:03]}  Bh5 {[%clk 0:00:48]} 47. Qg5+ {[%clk 0:00:03]}  Kh7 {[%clk 0:00:42]} 48. Rxh5+ {[%clk 0:00:03]} 1-0


[Site "https://www.chess.com"]

[Event "Titled Tuesday Blitz April 25 Early 2023"]
[White "Toktomushev, Teimur"]
[Black "Barwinska, Ewa"]
[WhiteFideId "14176726"]
[BlackFideId "21833761"]
[WhiteElo "2116"]
[BlackElo "1908"]
[Result "1-0"]
[Round "05"]
[TimeControl "180+2"]
[Date "2023.04.25"]
[WhiteClock "0:00:04"]
[BlackClock "0:00:08"]

1. d4 {[%clk 0:02:57]}  d5 {[%clk 0:02:55]} 2. c4 {[%clk 0:02:50]}  c6 {[%clk 0:02:55]} 3. Nc3 {[%clk 0:02:50]}  Nf6 {[%clk 0:02:53]} 4. e3 {[%clk 0:02:49]}  e6 {[%clk 0:02:53]} 5. Nf3 {[%clk 0:02:48]}  Bd6 {[%clk 0:02:52]} 6. Bd3 {[%clk 0:02:48]}  O-O {[%clk 0:02:52]} 7. O-O {[%clk 0:02:48]}  Nbd7 {[%clk 0:02:51]} 8. e4 {[%clk 0:02:48]}  dxe4 {[%clk 0:02:49]} 9. Nxe4 {[%clk 0:02:49]}  Nxe4 {[%clk 0:02:49]} 10. Bxe4 {[%clk 0:02:49]}  Nf6 {[%clk 0:02:49]} 11. Bc2 {[%clk 0:02:50]}  h6 {[%clk 0:02:49]} 12. Ne5 {[%clk 0:02:30]}  Qc7 {[%clk 0:02:26]} 13. Bf4 {[%clk 0:02:18]}  c5 {[%clk 0:02:05]} 14. Qd3 {[%clk 0:01:23]}  Rd8 {[%clk 0:01:10]} 15. Rad1 {[%clk 0:00:18]}  b6 {[%clk 0:01:04]} 16. dxc5 {[%clk 0:00:13]}  bxc5 {[%clk 0:00:59]} 17. Nxf7 {[%clk 0:00:07]}  Qxf7 {[%clk 0:00:53]} 18. Bxd6 {[%clk 0:00:07]}  Bb7 {[%clk 0:00:49]} 19. Qg3 {[%clk 0:00:04]}  Be4 {[%clk 0:00:35]} 20. Bb3 {[%clk 0:00:02]}  Nh5 {[%clk 0:00:31]} 21. Qh4 {[%clk 0:00:02]}  Qg6 {[%clk 0:00:30]} 22. f3 {[%clk 0:00:02]}  Bc6 {[%clk 0:00:15]} 23. Bxc5 {[%clk 0:00:02]}  Rxd1 {[%clk 0:00:12]} 24. Rxd1 {[%clk 0:00:03]}  Bxf3 {[%clk 0:00:11]} 25. Rd2 {[%clk 0:00:04]}  Be4 {[%clk 0:00:08]} 26. Bd1 {[%clk 0:00:03]}  Nf6 {[%clk 0:00:07]} 27. Bd4 {[%clk 0:00:03]}  Rf8 {[%clk 0:00:04]} 28. Bxf6 {[%clk 0:00:02]}  Rxf6 {[%clk 0:00:05]} 29. Bh5 {[%clk 0:00:02]}  Qf5 {[%clk 0:00:04]} 30. h3 {[%clk 0:00:02]}  Qf1+ {[%clk 0:00:04]} 31. Kh2 {[%clk 0:00:03]}  Qf4+ {[%clk 0:00:02]} 32. Qxf4 {[%clk 0:00:03]}  Rxf4 {[%clk 0:00:03]} 33. Rd8+ {[%clk 0:00:03]}  Kh7 {[%clk 0:00:04]} 34. Rd7 {[%clk 0:00:04]}  Bf5 {[%clk 0:00:04]} 35. Rxa7 {[%clk 0:00:03]}  Rxc4 {[%clk 0:00:04]} 36. Bf3 {[%clk 0:00:02]}  Rc2 {[%clk 0:00:05]} 37. b4 {[%clk 0:00:02]}  Rb2 {[%clk 0:00:05]} 38. a3 {[%clk 0:00:02]}  Bc2 {[%clk 0:00:06]} 39. Rc7 {[%clk 0:00:02]}  Bf5 {[%clk 0:00:06]} 40. a4 {[%clk 0:00:01]}  Rxb4 {[%clk 0:00:07]} 41. a5 {[%clk 0:00:02]}  Ra4 {[%clk 0:00:07]} 42. Rc5 {[%clk 0:00:03]}  Bd3 {[%clk 0:00:07]} 43. Bb7 {[%clk 0:00:01]}  Bc4 {[%clk 0:00:06]} 44. Re5 {[%clk 0:00:02]}  Bd5 {[%clk 0:00:06]} 45. Bxd5 {[%clk 0:00:02]}  exd5 {[%clk 0:00:07]} 46. Rxd5 {[%clk 0:00:02]}  Kg6 {[%clk 0:00:08]} 47. Rb5 {[%clk 0:00:02]}  Kf6 {[%clk 0:00:08]} 48. Rb6+ {[%clk 0:00:03]}  Ke7 {[%clk 0:00:08]} 49. a6 {[%clk 0:00:04]}  Kf8 {[%clk 0:00:06]} 50. Kg3 {[%clk 0:00:04]}  g5 {[%clk 0:00:06]} 51. Kf3 {[%clk 0:00:03]}  Kg7 {[%clk 0:00:06]} 52. Ke3 {[%clk 0:00:03]}  Ra3+ {[%clk 0:00:06]} 53. Kd4 {[%clk 0:00:03]}  Ra4+ {[%clk 0:00:07]} 54. Kc5 {[%clk 0:00:03]}  Ra1 {[%clk 0:00:07]} 55. Kc6 {[%clk 0:00:03]}  Rc1+ {[%clk 0:00:07]} 56. Kb7 {[%clk 0:00:04]}  Ra1 {[%clk 0:00:07]} 57. a7 {[%clk 0:00:04]}  Rf1 {[%clk 0:00:07]} 58. a8=Q {[%clk 0:00:04]}  Rf7+ {[%clk 0:00:08]} 59. Ka6 {[%clk 0:00:04]}  Rf8 {[%clk 0:00:08]} 60. Rb7+ {[%clk 0:00:04]} 1-0


[Site "https://www.chess.com"]